Cogmind - Beta 13 @@@ ROGUE MODE // 2024.04.13 @ 17:22:46 Player: Zaros426 Result: Destroyed by S-10 Pest with Light Assault Rifle Performance ------------- Evolutions (0) 0 Regions Visited (1) 200 Robots Destroyed (19) 95 Value Destroyed (337) 337 Prototype IDs (0) 0 Alien Tech Used (0) 0 Bonus (0) 0 TOTAL SCORE: 632 Bonus ------- None Cogmind --------- Core Integrity 0/250 Matter 211/300 Energy 120/160 System Corruption 0% Temperature Warm (150) Movement Rolling (80) Location -10/Materials Parts ------- > --- POWER (1) -------- Light Nuclear Core > --- PROPULSION (2) --- Wheel Wheel > --- UTILITY (2) ------ Medium Storage Unit > --- WEAPON (2) ------- Mining Laser > --- INVENTORY (10) --- Ion Engine Wheel Wheel Large Battery (200) Large Battery (200) Visual Processing Unit Signal Interpreter Signal Interpreter Improved Terrain Scanner Hacking Suite Peak State ------------ > --- POWER ------------ Light Nuclear Core > --- PROPULSION ------- Wheel Wheel > --- UTILITY ---------- Medium Storage Unit Machine Analyzer > --- WEAPON ----------- Assault Rifle > --- INVENTORY -------- Visual Processing Unit Sensor Array Signal Interpreter Hacking Suite Datajack [Rating: 10] Favorites ----------- Power Ion Engine Engine Ion Engine Power Core Light Nuclear Core Propulsion Wheel Wheel Wheel Utility Medium Storage Unit Device Improved Terrain Scanner Storage Medium Storage Unit Processor Machine Analyzer Weapon Assault Rifle Ballistic Gun Assault Rifle Special Weapon Mining Laser Build | -11 -10 ------- Run | Yrd Mat Slots Evolved . | . . Power . | . . Propulsion . | . . Utility . | . . Weapon . | . . Parts Attached 23 | 7 16 Power 3 | 1 2 Engine 1 | 1 . Core 2 | . 2 Reactor . | . . Propulsion 9 | 2 7 Treads . | . . Leg . | . . Wheel 9 | 2 7 Hover . | . . Flight . | . . Utility 6 | 3 3 Device 2 | 1 1 Storage 3 | 2 1 Processor 1 | . 1 Hackware . | . . Protection . | . . Artifact . | . . Weapon 5 | 1 4 Energy Gun . | . . Energy Cannon . | . . Ballistic Gun 4 | 1 3 Ballistic Cannon . | . . Launcher . | . . Special Weapon 1 | . 1 Impact Weapon . | . . Slashing Weapon . | . . Piercing Weapon . | . . Special Melee Weapon . | . . Unidentified Prototypes . | . . Parts Lost 7 | . 7 Power 1 | . 1 Propulsion 3 | . 3 Utility 1 | . 1 Weapon 2 | . 2 Highest Loss Streak 4 | . 4 To Critical Strikes . | . . Average Slot Usage (%) 76 | . 76 Engine 6 | . 6 Core 6 | . 6 Wheel 24 | . 24 Device 11 | . 11 Storage 14 | . 14 Ballistic Gun 12 | . 12 Naked Turns . | . . Heaviest Build 18 | 13 18 Greatest Support 20 | 20 20 Greatest Overweight (x) 5 | . 5 Average Overweight (x) . | . . Largest Inventory Capacity 10 | 8 10 Average Capacity 9 | 5 9 Most Carried 10 | 5 10 Average Carried 7 | 3 7 Final Capacity 10 | 8 10 Final Carried 10 | 3 10 Class Distribution -------------------- 65% | Mutant 34% | Scavenger-Mutant Dominant Class ---------------- Mutant | -10/Materials Resources | -11 -10 ----------- Run | Yrd Mat Matter Collected 599 | 246 353 Remotely . | . . Salvage Created 542 | 47 495 Parts 52 | 9 43 Haulers Intercepted 1 | . 1 Recyclers Shooed 1 | 1 . Parts Field Recycled . | . . Retrieved Matter . | . . Parts Self-Destructed . | . . Prevented . | . . Kills | -11 -10 ------- Run | Yrd Mat Combat Hostiles Destroyed 8 | . 8 Guns 7 | . 7 Cannons 1 | . 1 Classes Destroyed 8 | 1 7 Worker 3 | . 3 Tunneler 3 | 2 1 Hauler 1 | . 1 Mechanic 1 | . 1 Operator 1 | . 1 Watcher 2 | . 2 Swarmer 2 | . 2 Grunt 6 | . 6 Best Kill Streak 4 | 1 4 Combat Bots Only 2 | . 2 Max Kills in Single Turn 1 | 1 1 Gunslinging . | . . Exploded . | . . Melee . | . . Uniques/NPCs Destroyed . | . . Combat | -11 -10 -------- Run | Yrd Mat Hostile Shots Fired 97 | . 97 Missed 20 | . 20 Damage Taken 878 | . 878 Core 254 | . 254 Absorbed by Shields . | . . Core Remaining (%) 100 | 100 . Volleys Fired 106 | 7 99 Largest 1 | 1 1 Hottest 100 | 20 100 Shots Fired 106 | 7 99 Gun 99 | 7 92 Cannon . | . . Launcher . | . . Special 7 | . 7 Kinetic 99 | 7 92 Thermal 7 | . 7 Explosive . | . . Electromagnetic . | . . Robot Hit Streak 11 | 1 11 Robot Miss Streak 5 | 3 5 Penetration Max . | . . Secondary Targets . | . . Shots Hit Robots 68 | 3 65 Core Hits 33 | 2 31 Critical Kills 1 | . 1 Critical Parts Destroyed 1 | . 1 Critical Strikes 2 | . 2 Destroy 2 | . 2 Melee Attacks . | . . Impact . | . . Slashing . | . . Piercing . | . . Sneak Attacks . | . . Combat Hostiles . | . . Follow-up Attacks . | . . Damage Inflicted 895 | 55 840 Guns 843 | 55 788 Cannons . | . . Explosions . | . . Melee . | . . Ramming 4 | . 4 Kinetic 843 | 55 788 Thermal 48 | . 48 Explosive . | . . Electromagnetic . | . . Impact . | . . Slashing . | . . Piercing . | . . Highest Corruption . | . . Average Corruption . | . . Corruption Purged . | . . Corruption Blocked . | . . Overload Shots . | . . Overflow Damage . | . . Projectiles . | . . Explosions . | . . Melee . | . . Knockbacks . | . . Impact . | . . Kinetic . | . . Secondary . | . . Self-Inflicted Damage 2 | . 2 Shots . | . . Rammed 1 | . 1 Targets Rammed 1 | . 1 Kicked . | . . Crushed . | . . Highest Temperature 150 | . 150 Average Temperature 54 | . 54 Received Heat Transfer 369 | . 369 Siege Activations . | . . Robots Corrupted . | . . Combat Hostiles . | . . Parts Fried . | . . Impact Corruptions . | . . Robots Melted . | . . Combat Hostiles . | . . Parts Melted . | . . Heat Transferred 100 | . 100 Parts Sabotaged . | . . Parts Stolen . | . . Parts Stripped . | . . Power Chain Reactions . | . . Alert | -11 -10 ------- Run | Yrd Mat Peak Influence 134 | 10 134 Initial 6 | . 6 Average 74 | 5 84 Maximum Alert Level . | . . Low Security (%) 100 | 100 100 Level 1 . | . . Level 2 . | . . Level 3 . | . . Level 4 . | . . Level 5 . | . . High Security . | . . Max Security . | . . Squads Dispatched 2 | . 2 Investigation 1 | . 1 Extermination . | . . Reinforcement 1 | . 1 Assault . | . . Garrison . | . . Intercept . | . . Searches Triggered . | . . Construction Impeded . | . . Haulers Reinforced . | . . Active Scanning Responses . | . . Cargo Convoy Interrupts . | . . Stealth | -11 -10 --------- Run | Yrd Mat Distress Signals . | . . Communications Jammed . | . . Distress Signals . | . . Times Spotted 17 | . 17 Peak Tracking Total 3 | . 3 Tactical Retreats 1 | . 1 Traps | -11 -10 ------- Run | Yrd Mat Traps Triggered 4 | . 4 Indirectly . | . . Trap Hack Attempts . | . . Triggered . | . . Disarmed . | . . Reprogrammed . | . . Reused . | . . Traps Extracted . | . . Installed . | . . Triggered . | . . Machines | -11 -10 ---------- Run | Yrd Mat Machines Disabled . | . . Max in Single Turn . | . . Machines Repaired . | . . Machines Dismantled . | . . Machines Sabotaged . | . . Overloaded Fab Kills . | . . Hacking | -11 -10 --------- Run | Yrd Mat Machines Accessed 3 | . 3 Terminals 2 | . 2 Fabricators . | . . Repair Stations 1 | . 1 Recycling Units . | . . Scanalyzers . | . . Garrison Access . | . . Total Hacks 10 | . 10 Successful 9 | . 9 Failed 1 | . 1 Catastrophic . | . . Database Lockouts . | . . Manual 1 | . 1 Terminals 9 | . 9 Fabricators . | . . Repair Stations 1 | . 1 Recycling Units . | . . Scanalyzers . | . . Garrison Access . | . . Terminal Hacks 8 | . 8 Record 3 | . 3 Locate Traps 1 | . 1 Security Status 1 | . 1 Investigation Status 2 | . 2 Recall Investigation 1 | . 1 Fabricator Hacks . | . . Repair Station Hacks 1 | . 1 Scan Component 1 | . 1 Recycling Unit Hacks . | . . Scanalyzer . | . . Garrison Access Hacks . | . . Unauthorized Hacks . | . . Terminals . | . . Fabricators . | . . Repair Stations . | . . Recycling Units . | . . Scanalyzers . | . . Garrison Access . | . . Data Cores Recovered 1 | . 1 Used . | . . Hacking Detections 3 | . 3 Full Trace Events 1 | . 1 Feedback Events . | . . Feedback Blocked . | . . Robot Schematics Acquired . | . . Robots Built . | . . Authchips . | . . Time . | . . Total Robot Build Rating . | . . Part Schematics Acquired . | . . Parts Built . | . . Authchips . | . . Time . | . . Total Part Build Rating . | . . Parts Repaired . | . . Time . | . . Parts Recycled . | . . Recycled Matter . | . . Retrieved Matter . | . . Retrieved Components . | . . Parts Scanalyzed . | . . Part Schematics Acquired . | . . Parts Damaged . | . . Bothacking | -11 -10 ------------ Run | Yrd Mat Used RIF Installer . | . . Robots Hacked . | . . Non-combat . | . . Combat . | . . Robot Hacks Applied . | . . Relay Couplers Released . | . . Fabnet Peak Effective % . | . . Robots Rewired . | . . Allies Hacked . | . . Hacks Repelled . | . . Allies | -11 -10 -------- Run | Yrd Mat Total Allies . | . . Largest Group . | . . Highest-Rated Group . | . . Highest-Rated Ally . | . . Total Orders . | . . Ally Attacks . | . . Total Damage . | . . Kills . | . . Allies Corrupted . | . . Allies Melted . | . . Intel | -11 -10 ------- Run | Yrd Mat Robot Analysis Total . | . . Derelict Logs Recovered . | . . Drone Launches . | . . Drone Recoveries . | . . Exploration | -11 -10 ------------- Run | Yrd Mat Turns Passed 651 | 84 567 Spaces Moved 413 | 60 353 Core 53 | 46 7 Treads . | . . Legs . | . . Wheels 360 | 14 346 Hover . | . . Flight . | . . Fastest Speed 50 | 50 80 Average Speed 79 | 57 83 Slowest Speed 300 | 80 300 Overloaded Moves . | . . Propulsion Burnouts . | . . Robots Hopped . | . . Cave-ins Triggered . | . . Exploration Rate (%) 29 | 4 54 Regions Visited 1 Branch Regions . Pre-discovered Areas . | . . Known Exits Taken . | . . Unknown Exits Taken 1 | 1 . Scrap Searched . | . . Spaces Dug . | . . Terrain Destroyed . | . . Melee . | . . Projectile . | . . AOE . | . . Terrain Rammed . | . . Walls Destroyed . | . . Machines Disabled . | . . Actions | -11 -10 --------- Run | Yrd Mat Total 615 | 102 513 Wait 46 | 21 25 Move 412 | 59 353 Hop . | . . Pick Up 21 | 7 14 Fast Attach 11 | 2 9 Attach 10 | 5 5 Detach 1 | 1 . Swap 2 | . 2 Drop 5 | . 5 Fire 106 | 7 99 Melee . | . . Ram 1 | . 1 Kick . | . . Crush . | . . Escape Stasis . | . . Rewire . | . . Trap . | . . Miscellaneous . | . . Route ------- -11/Scrapyard -10/Materials (discovered 1 exit: [*Min]) History --------- Turn | Location | Event 15 | -11/Scrapyard | Discovered new exit (range 16) 85 | -11/Scrapyard | Entered Materials 309 | -10/Materials | Build established: Mutant 399 | -10/Materials | Lost 4 parts (1p2n1w) 520 | -10/Materials | Core integrity fell below 50% 577 | -10/Materials | Discovered new exit (range 10) 623 | -10/Materials | Core integrity fell below 20% 652 | -10/Materials | Destroyed by S-10 Pest with Light Assault Rifle Last Messages --------------- 00590_ Wheel severed. 00590_ Assault Rifle severed. 00591_ Acquired Lgt. Nuclear Core. 00596_ Acquired Wheel. 00600_ Acquired Assault Rifle. 00611_ S-10 Pest suffers critical hit (Destroy). 00611_ S-10 Pest destroyed. 00616_ Assault Rifle destroyed. 00618_ Slammed into S-10 Pest. 00621_ Triggered Blade Trap. 00621_ Massive razor-sharp blades shoot up from within the floor. 00621_ Sensor Array severed. 00621_ Wheel severed. 00622_ Acquired Mining Laser. 00624_ Acquired Wheel. 00626_ K-01 Serf collects debris. 00631_ S-10 Pest destroyed. 00635_ K-01 Serf collects debris. 00635_ Acquired 12 matter. 00640_ K-01 Serf destroyed. Map ----- +----------------------------------------------------+ | ???????????????# """ #???? ""#??? | | ???????????????# """ #???? #??? | | ???????????????# #??? < #??? | | ???????????????# """ #??? #??? | | ???????????????# """ #??? #??? | | ???????????????# """ #??? #???? | | ?????????###+### ????? ####?? | | ???# ##### ##+####### !##? | | ?? !#? | | ?????????# = !#? | | ??######## ! !#? | | ??# # ##+##### ### !#? | | ??# ## ## ## #??????? | | ??# ## ## ## #??????? | | ??# ## ## ## #??????? | | ??# ## [%## ## #??????? | | ??# ## !=## """ ## #??????? | | #######+## ! # """ ## #######? | | * # """ ## # # | | +% ## # """# | | # """ ## / # """# | | ########## # """ ##%^ # """# | | ?????????####### """ ## # # | | ???????????????# ##! # """# | | ???????????????######## *# """# | | ??????????????????????# @/= """# | | ??????????????????????# %s# # | | ??????????????????????# # # | | ??????????????????????# ######## | | ??????????????????????# #??????? | | ?????????????????????? +??????? | | ????????????????????? #??????? | | ???????????????????? #??????? | | ???????????????????#### #??????? | | ??????????????????????# #??????? | | ??????????????????????# r#??????? | | ??????????????????????+ +??????? | | ??????????????????????# ???????? | | ??????????????????????# ???????? | | ??????????????????????# ???????? | | ??????????????????????# ???????? | | ??????????????????????? ???????? | | ?????????????????????????????????? | | ?????????????????????????????????? | | ?????????????????????????????????? | | ?????????????????????????????????? | | ?????????????????????????????????? | | ?????????????????????????????????? | | ?????????????????????????????????? | | ?????????????????????????????????? | +----------------------------------------------------+ Best States ------------- Heat Dissipation 25 Energy Generation 14 Energy Capacity 250 Matter Stores 300 Matter Capacity 300 Sight Range 16 Robot Scan Range 14 Terrain Scan Range 16 Terrain Scan Density 10 Evasion (%) 50 Item Schematics ----------------- None Robot Schematics ------------------ None Fabricated ------------ Nothing Alien Tech Used ----------------- None Achievements -------------- None Challenges ------------ None Game ------ Seed DecoderCentriumPenetrator Manual? 0 Play Time 00:09:30 Cumulative 38.5 hours Start 2024.04.13 @ 17:14:00 End 2024.04.13 @ 17:22:46 Sessions 1 Manual Loads 0 Difficulty Rogue Special Mode None Game No. 41 Rogue 41 Adventurer 0 Explorer 0 Win Type - Total 0 Types 0/0/0/0/0/0/0/0/0 Lore% 25 Gallery% 36 Achievement% 27 Wizard Run 0 Options --------- Layout 0 ASCII 0 Keyboard 0 Movement Mouse Keybinds 0 Fullscreen 1 Font 24/Smallcaps Map View 183x50 Zoom Use 0% Tactical HUD 1 Map Filters NONE Filters NONE Steam 0 RUN: 4f3e7bb6-fe92-4161-9c60-4dcb26ff3eb2